[Event "Balkan Youth Online-ch 2020"]
[Site "Online"]
[Date "2020.10.31"]
[Round "2.74"]
[White "Tsakona, Maria"]
[Black "Ciftci, Zeynep"]
[Result "0-1"]
[ECO "A37"]
[WhiteElo "1596"]
[BlackElo "1603"]
[Annotator "NA RC"]
[PlyCount "66"]
[EventDate "2020.10.31"]
[EventType "swiss"]
[SourceTitle "playchess.com"]
[Source "ChessBase"]
[SourceQuality "1"]
[TimeControl "5400+30"]

1. Nf3 {[%emt 1:05:20]} g6 {[%emt 1:05:24]} 2. c4 {[%emt 0:00:32]} Bg7 {[%emt 0:00:26]} 3. Nc3 {[%emt 0:00:29]} c5 {[%emt 0:00:22]} 4. g3 {[%emt 0:00:24]} Nc6 {[%emt 0:00:23]} 5. Bg2 {[%emt 0:00:22]} e5 {[%emt 0:00:21]} 6. d3 {[%emt 0:00:25]} Nge7 {[%emt 0:00:21]} 7. O-O {[%emt 0:00:25]} O-O {[%emt 0:00:22]} 8. Ng5 {[%emt 0:03:00]} h6 {[%emt 0:00:36]} 9. Nge4 {[%emt 0:00:25]} d6 {[%emt 0:00:24]} 10. f4 {[%emt 0:00:46]} f5 {[%emt 0:00:26]} 11. Nf2 {[%emt 0:00:36]} Rb8 {[%emt 0:01:04]} 12. fxe5 {[%emt 0:01:45]} dxe5 {[%emt 0:00:56]} 13. Be3 {[%emt 0:01:52]} Nd4 {[%emt 0:00:42]} 14. Qd2 {[%emt 0:00:24]} g5 {[%emt 0:01:17]} 15. Nfd1 {[%emt 0:01:00]} f4 {[%emt 0:02:13]} 16. Bxd4 {[%emt 0:02:07]} cxd4 {[%emt 0:04:16]} 17. Nd5 {[%emt 0:01:17]} Nf5 {[%emt 0:00:43]} 18. gxf4 {[%emt 0:01:13]} gxf4 {[%emt 0:01:26]} 19. Kh1 {[%emt 0:01:01]} Qh4 {[%emt 0:01:57]} 20. Kg1 {[%emt 0:01:13]} Bd7 {[%emt 0:07:44]} 21. Nf2 {[%emt 0:03:57]} Ne3 {[%emt 0:01:12]} 22. Ne4 {[%emt 0:02:11]} Nxf1 {[%emt 0:04:35]} 23. Rxf1 {[%emt 0:00:27]} Bc6 {[%emt 0:00:23]} 24. Nb4 {[%emt 0:01:20]} Bd7 {[%emt 0:00:34]} 25. Kh1 {[%emt 0:02:39]} Kh8 {[%emt 0:01:11]} 26. Rg1 {[%emt 0:00:39]} Rf5 {[%emt 0:00:55]} 27. Bf3 {[%emt 0:00:33]} Rg8 {[%emt 0:01:32]} 28. Bg4 {[%emt 0:02:47]} Rg5 {[%emt 0:00:41]} 29. Bxd7 {[%emt 0:03:22]} Rxg1+ {[%emt 0:00:28]} 30. Kxg1 {[%emt 0:00:22]} Bf8+ {[%emt 0:00:57]} 31. Kh1 {[%emt 0:00:23]} Qe7 {[%emt 0:00:22]} 32. Nd5 {[%emt 0:00:42]} Qg7 {[%emt 0:00:29]} 33. Ng3 {[%emt 0:00:48]} fxg3 {[%emt 0:00:24]} 0-1

[Event "Balkan Youth Online-ch 2020"]
[Site "Online"]
[Date "2020.10.31"]
[Round "2.75"]
[White "Kipik, Feyza"]
[Black "Paroglou, Marianna"]
[Result "1/2-1/2"]
[ECO "C01"]
[WhiteElo "1592"]
[BlackElo "1436"]
[Annotator "NA RC"]
[PlyCount "116"]
[EventDate "2020.10.31"]
[EventType "swiss"]
[SourceTitle "playchess.com"]
[Source "ChessBase"]
[SourceQuality "1"]
[TimeControl "5400+30"]

1. e4 {[%emt 1:05:20]} e6 {[%emt 1:05:24]} 2. d4 {[%emt 0:00:24]} d5 {[%emt 0:00:23]} 3. Nc3 {[%emt 0:00:22]} Bb4 {[%emt 0:00:23]} 4. exd5 {[%emt 0:00:24]} exd5 {[%emt 0:00:26]} 5. Bd3 {[%emt 0:00:22]} Ne7 {[%emt 0:01:28]} 6. Nge2 {[%emt 0:00:25]} c5 {[%emt 0:01:36]} 7. Bb5+ {[%emt 0:04:30]} Nbc6 {[%emt 0:02:03]} 8. dxc5 {[%emt 0:03:56]} Bxc5 {[%emt 0:00:56]} 9. Bxc6+ {[%emt 0:00:54]} bxc6 {[%emt 0:00:33]} 10. Nd4 {[%emt 0:00:54]} Ba6 {[%emt 0:01:41]} 11. Nce2 {[%emt 0:03:40]} O-O {[%emt 0:00:56]} 12. Be3 {[%emt 0:02:17]} Qb6 {[%emt 0:03:43]} 13. Rb1 {[%emt 0:03:01]} Bxe2 {[%emt 0:03:51]} 14. Kxe2 {[%emt 0:01:52]} Bxd4 {[%emt 0:07:39]} 15. Qxd4 {[%emt 0:00:54]} Qxd4 {[%emt 0:00:43]} 16. Bxd4 {[%emt 0:00:24]} Nf5 {[%emt 0:01:29]} 17. Bc5 {[%emt 0:00:31]} Rfe8+ {[%emt 0:02:44]} 18. Kd3 {[%emt 0:00:55]} a6 {[%emt 0:01:23]} 19. Rhe1 {[%emt 0:00:47]} Re6 {[%emt 0:00:41]} 20. Rxe6 {[%emt 0:01:34]} fxe6 {[%emt 0:00:24]} 21. Re1 {[%emt 0:00:30]} Kf7 {[%emt 0:00:26]} 22. g4 {[%emt 0:02:54]} Ne7 {[%emt 0:01:15]} 23. Kd4 {[%emt 0:01:09]} Ng6 {[%emt 0:00:39]} 24. Bd6 {[%emt 0:00:39]} Rd8 {[%emt 0:00:57]} 25. Kc5 {[%emt 0:00:28]} Nf8 {[%emt 0:00:30]} 26. Bxf8 {[%emt 0:01:29]} Rxf8 {[%emt 0:00:25]} 27. Kd6 {[%emt 0:00:52]} Rd8+ {[%emt 0:00:37]} 28. Kc7 {[%emt 0:00:47]} Re8 {[%emt 0:00:26]} 29. c3 {[%emt 0:00:29]} a5 {[%emt 0:00:37]} 30. Kxc6 {[%emt 0:00:43]} Rb8 {[%emt 0:00:28]} 31. Re2 {[%emt 0:00:40]} Ke7 {[%emt 0:00:27]} 32. Kc5 {[%emt 0:01:00]} Kd7 {[%emt 0:00:32]} 33. b3 {[%emt 0:00:52]} g6 {[%emt 0:00:33]} 34. Re3 {[%emt 0:00:33]} h5 {[%emt 0:00:27]} 35. gxh5 {[%emt 0:00:26]} gxh5 {[%emt 0:00:24]} 36. Re5 {[%emt 0:00:37]} h4 {[%emt 0:00:36]} 37. Rh5 {[%emt 0:00:29]} Rc8+ {[%emt 0:00:26]} 38. Kd4 {[%emt 0:00:32]} Kd6 {[%emt 0:00:25]} 39. Rxh4 {[%emt 0:00:28]} e5+ {[%emt 0:00:22]} 40. Kd3 {[%emt 0:00:31]} Rf8 {[%emt 0:00:32]} 41. Ke3 {[%emt 0:00:31]} Kc5 {[%emt 0:00:26]} 42. Rh5 {[%emt 0:00:35]} Re8 {[%emt 0:00:32]} 43. h4 {[%emt 0:00:26]} a4 {[%emt 0:00:34]} 44. Rg5 {[%emt 0:00:36]} axb3 {[%emt 0:00:38]} 45. axb3 {[%emt 0:00:22]} Rb8 {[%emt 0:00:27]} 46. Rxe5 {[%emt 0:00:33]} Rxb3 {[%emt 0:00:23]} 47. Kd3 {[%emt 0:00:23]} Rb1 {[%emt 0:00:33]} 48. h5 {[%emt 0:00:38]} Rh1 {[%emt 0:00:41]} 49. c4 {[%emt 0:00:35]} Rh3+ {[%emt 0:00:28]} 50. Kd2 {[%emt 0:00:30]} Kxc4 {[%emt 0:00:30]} 51. Rf5 {[%emt 0:00:27]} Kd4 {[%emt 0:00:36]} 52. Rf8 {[%emt 0:00:32]} Rxh5 {[%emt 0:00:24]} 53. Rf4+ {[%emt 0:00:29]} Ke5 {[%emt 0:00:29]} 54. Rg4 {[%emt 0:00:26]} Rh2 {[%emt 0:00:28]} 55. Ke3 {[%emt 0:00:25]} Rh3+ {[%emt 0:00:34]} 56. f3 {[%emt 0:00:28]} d4+ {[%emt 0:00:37]} 57. Rxd4 {[%emt 0:00:42]} Rxf3+ {[%emt 0:00:24]} 58. Kxf3 {[%emt 0:00:22]} Kxd4 {[%emt 0:00:22]} 1/2-1/2

[Event "Balkan Youth Online-ch 2020"]
[Site "Online"]
[Date "2020.10.31"]
[Round "2.76"]
[White "Tsekoura, Vaia"]
[Black "Shuqja, Klean"]
[Result "0-1"]
[ECO "C00"]
[WhiteElo "1488"]
[BlackElo "1838"]
[Annotator "NA RC"]
[PlyCount "50"]
[EventDate "2020.10.31"]
[EventType "swiss"]
[SourceTitle "playchess.com"]
[Source "ChessBase"]
[SourceQuality "1"]
[TimeControl "5400+30"]

1. e4 {[%emt 1:05:20]} e6 {[%emt 1:05:24]} 2. f4 {[%emt 0:00:45]} d5 {[%emt 0:00:29]} 3. e5 {[%emt 0:00:24]} c5 {[%emt 0:00:34]} 4. Nf3 {[%emt 0:00:31]} Nc6 {[%emt 0:00:29]} 5. c3 {[%emt 0:00:29]} d4 {[%emt 0:01:34]} 6. Bd3 {[%emt 0:00:39]} Nge7 {[%emt 0:01:13]} 7. O-O {[%emt 0:00:54]} Nd5 {[%emt 0:01:10]} 8. g3 {[%emt 0:00:51]} Be7 {[%emt 0:01:07]} 9. Na3 {[%emt 0:01:04]} O-O {[%emt 0:01:35]} 10. Nc2 {[%emt 0:01:35]} Nb6 {[%emt 0:02:54]} 11. b3 {[%emt 0:02:49]} Nd5 {[%emt 0:02:05]} 12. Bb2 {[%emt 0:01:36]} dxc3 {[%emt 0:02:45]} 13. dxc3 {[%emt 0:00:28]} Qc7 {[%emt 0:01:40]} 14. Qe2 {[%emt 0:02:05]} a6 {[%emt 0:01:33]} 15. Ne3 {[%emt 0:05:03]} Nxe3 {[%emt 0:01:37]} 16. Qxe3 {[%emt 0:00:25]} b6 {[%emt 0:02:48]} 17. Nd2 {[%emt 0:03:03]} c4 {[%emt 0:01:46]} 18. Bxh7+ {[%emt 0:01:21]} Kxh7 {[%emt 0:00:26]} 19. Qe4+ {[%emt 0:00:24]} Kg8 {[%emt 0:00:28]} 20. Nxc4 {[%emt 0:00:52]} Bc5+ {[%emt 0:01:15]} 21. Ne3 {[%emt 0:00:39]} Bb7 {[%emt 0:00:46]} 22. Qd3 {[%emt 0:01:07]} Ne7 {[%emt 0:00:55]} 23. b4 {[%emt 0:00:37]} Bxe3+ {[%emt 0:00:40]} 24. Qxe3 {[%emt 0:00:24]} Nf5 {[%emt 0:00:32]} 25. Qd3 {[%emt 0:01:33]} Qc6 {[%emt 0:00:40]} 0-1

[Event "Balkan Youth Online-ch 2020"]
[Site "Online"]
[Date "2020.10.31"]
[Round "2.77"]
[White "Mitkova, Victoria-Elizabeth"]
[Black "Puia, Alexia-Teodora"]
[Result "0-1"]
[ECO "B44"]
[WhiteElo "1105"]
[BlackElo "1697"]
[Annotator "NA RC"]
[PlyCount "74"]
[EventDate "2020.10.31"]
[EventType "swiss"]
[SourceTitle "playchess.com"]
[Source "ChessBase"]
[SourceQuality "1"]
[TimeControl "5400+30"]

1. e4 {[%emt 1:05:20]} c5 {[%emt 1:05:23]} 2. Nf3 {[%emt 0:00:23]} e6 {[%emt 0:00:23]} 3. d4 {[%emt 0:00:25]} cxd4 {[%emt 0:00:22]} 4. Nxd4 {[%emt 0:00:22]} Nc6 {[%emt 0:00:22]} 5. Nxc6 {[%emt 0:00:29]} bxc6 {[%emt 0:00:22]} 6. Nc3 {[%emt 0:00:32]} Qc7 {[%emt 0:00:23]} 7. Bc4 {[%emt 0:00:43]} Nf6 {[%emt 0:00:38]} 8. Bg5 {[%emt 0:00:42]} Be7 {[%emt 0:00:28]} 9. Qd2 {[%emt 0:00:40]} h6 {[%emt 0:00:40]} 10. Bh4 {[%emt 0:00:36]} O-O {[%emt 0:00:27]} 11. Bg3 {[%emt 0:00:33]} d6 {[%emt 0:00:50]} 12. O-O-O {[%emt 0:00:33]} Rd8 {[%emt 0:00:31]} 13. f3 {[%emt 0:00:49]} Rb8 {[%emt 0:00:40]} 14. Qe3 {[%emt 0:00:52]} Qb7 {[%emt 0:00:43]} 15. b3 {[%emt 0:00:30]} d5 {[%emt 0:00:35]} 16. exd5 {[%emt 0:00:57]} cxd5 {[%emt 0:01:54]} 17. Be2 {[%emt 0:00:45]} Ra8 {[%emt 0:00:55]} 18. Qf2 {[%emt 0:02:16]} Ba3+ {[%emt 0:00:38]} 19. Kb1 {[%emt 0:00:34]} Bd7 {[%emt 0:00:49]} 20. Bh4 {[%emt 0:00:51]} Be7 {[%emt 0:00:41]} 21. Bd3 {[%emt 0:00:52]} a5 {[%emt 0:01:09]} 22. Ka1 {[%emt 0:00:44]} Qb4 {[%emt 0:01:17]} 23. Bxf6 {[%emt 0:01:54]} Bxf6 {[%emt 0:00:27]} 24. Kb1 {[%emt 0:00:54]} Qxc3 {[%emt 0:00:26]} 25. Kc1 {[%emt 0:00:27]} Qb2+ {[%emt 0:01:46]} 26. Kd2 {[%emt 0:00:29]} Rdc8 {[%emt 0:00:37]} 27. a4 {[%emt 0:00:44]} Rab8 {[%emt 0:00:51]} 28. Ke1 {[%emt 0:00:29]} e5 {[%emt 0:01:11]} 29. Kf1 {[%emt 0:00:39]} Re8 {[%emt 0:01:00]} 30. Re1 {[%emt 0:00:41]} Rbc8 {[%emt 0:01:15]} 31. g3 {[%emt 0:01:19]} Bh3+ {[%emt 0:00:37]} 32. Kg1 {[%emt 0:00:30]} e4 {[%emt 0:00:22]} 33. fxe4 {[%emt 0:00:35]} Bd4 {[%emt 0:00:24]} 34. Re3 {[%emt 0:00:41]} Qc1+ {[%emt 0:00:25]} 35. Bf1 {[%emt 0:00:26]} Bxe3 {[%emt 0:00:23]} 36. exd5 {[%emt 0:00:45]} Bxf2+ {[%emt 0:00:24]} 37. Kxf2 {[%emt 0:00:23]} Qe3# {[%emt 0:00:22]} 0-1

[Event "Balkan Youth Online-ch 2020"]
[Site "Online"]
[Date "2020.10.31"]
[Round "2.78"]
[White "Mandic, Anastasija"]
[Black "Zrmanovska, Mihaela"]
[Result "0-1"]
[ECO "B28"]
[WhiteElo "1130"]
[BlackElo "1300"]
[Annotator "NA RC"]
[PlyCount "74"]
[EventDate "2020.10.31"]
[EventType "swiss"]
[SourceTitle "playchess.com"]
[Source "ChessBase"]
[SourceQuality "1"]
[TimeControl "5400+30"]

1. e4 {[%emt 1:05:20]} c5 {[%emt 1:05:24]} 2. Nf3 {[%emt 0:00:23]} a6 {[%emt 0:00:34]} 3. d4 {[%emt 0:00:29]} cxd4 {[%emt 0:00:30]} 4. Nxd4 {[%emt 0:00:22]} Nf6 {[%emt 0:00:46]} 5. Nc3 {[%emt 0:00:24]} e5 {[%emt 0:02:22]} 6. Nf5 {[%emt 0:00:55]} d5 {[%emt 0:01:09]} 7. Ng3 {[%emt 0:02:44]} d4 {[%emt 0:04:38]} 8. Nce2 {[%emt 0:02:03]} Nbd7 {[%emt 0:02:35]} 9. c3 {[%emt 0:01:00]} Qa5 {[%emt 0:06:37]} 10. Bd2 {[%emt 0:00:54]} Nc5 {[%emt 0:00:42]} 11. Qc2 {[%emt 0:01:46]} d3 {[%emt 0:01:14]} 12. Qb1 {[%emt 0:03:23]} dxe2 {[%emt 0:01:34]} 13. Bxe2 {[%emt 0:00:24]} Qa4 {[%emt 0:01:07]} 14. b3 {[%emt 0:01:05]} Qc6 {[%emt 0:00:41]} 15. Bf3 {[%emt 0:00:50]} Bd6 {[%emt 0:01:11]} 16. O-O {[%emt 0:00:29]} O-O {[%emt 0:00:29]} 17. Rd1 {[%emt 0:00:36]} Bg4 {[%emt 0:01:13]} 18. Bxg4 {[%emt 0:01:29]} Nxg4 {[%emt 0:00:24]} 19. b4 {[%emt 0:00:33]} Na4 {[%emt 0:00:48]} 20. Qb3 {[%emt 0:01:37]} Rac8 {[%emt 0:00:58]} 21. Rac1 {[%emt 0:00:46]} Nb6 {[%emt 0:00:36]} 22. h3 {[%emt 0:01:03]} Nf6 {[%emt 0:00:30]} 23. Be3 {[%emt 0:00:30]} Nc4 {[%emt 0:00:42]} 24. Nf5 {[%emt 0:01:04]} Rfd8 {[%emt 0:02:32]} 25. Nxd6 {[%emt 0:01:37]} Rxd6 {[%emt 0:00:31]} 26. Bc5 {[%emt 0:00:59]} Rxd1+ {[%emt 0:00:53]} 27. Rxd1 {[%emt 0:00:23]} Qxe4 {[%emt 0:00:35]} 28. f3 {[%emt 0:04:11]} Qf4 {[%emt 0:00:50]} 29. Re1 {[%emt 0:00:55]} b6 {[%emt 0:00:38]} 30. Be7 {[%emt 0:00:39]} Nd5 {[%emt 0:00:47]} 31. Bd6 {[%emt 0:01:17]} Nde3 {[%emt 0:00:48]} 32. Be7 {[%emt 0:01:01]} Qg3 {[%emt 0:00:26]} 33. Re2 {[%emt 0:00:56]} Re8 {[%emt 0:00:33]} 34. Bd6 {[%emt 0:01:33]} Rd8 {[%emt 0:00:28]} 35. Be7 {[%emt 0:00:25]} Rd1+ {[%emt 0:00:24]} 36. Qxd1 {[%emt 0:00:38]} Nxd1 {[%emt 0:00:23]} 37. Re4 {[%emt 0:00:31]} Nce3 {[%emt 0:00:27]} 0-1

[Event "Balkan Youth Online-ch 2020"]
[Site "Online"]
[Date "2020.10.31"]
[Round "2.80"]
[White "Lusheska, Elena"]
[Black "Chicarosie, Ioana-Bianca"]
[Result "0-1"]
[ECO "D00"]
[WhiteElo "1086"]
[BlackElo "1521"]
[Annotator "NA RC"]
[PlyCount "66"]
[EventDate "2020.10.31"]
[EventType "swiss"]
[SourceTitle "playchess.com"]
[Source "ChessBase"]
[SourceQuality "1"]
[TimeControl "5400+30"]

1. d4 {[%emt 1:05:20]} d5 {[%emt 1:05:24]} 2. Nc3 {[%emt 0:00:23]} Nf6 {[%emt 0:00:24]} 3. Bf4 {[%emt 0:00:24]} e6 {[%emt 0:00:44]} 4. Nb5 {[%emt 0:00:27]} Na6 {[%emt 0:01:11]} 5. a4 {[%emt 0:00:42]} c6 {[%emt 0:00:45]} 6. Na3 {[%emt 0:00:25]} Bd6 {[%emt 0:00:34]} 7. Bg3 {[%emt 0:00:40]} O-O {[%emt 0:00:49]} 8. e3 {[%emt 0:00:23]} Nc7 {[%emt 0:00:34]} 9. Bd3 {[%emt 0:00:38]} b6 {[%emt 0:00:55]} 10. c3 {[%emt 0:00:43]} Bb7 {[%emt 0:00:25]} 11. Nf3 {[%emt 0:00:31]} c5 {[%emt 0:00:44]} 12. Be5 {[%emt 0:01:05]} a6 {[%emt 0:02:24]} 13. Nb1 {[%emt 0:01:05]} Bxe5 {[%emt 0:01:17]} 14. Nxe5 {[%emt 0:00:29]} c4 {[%emt 0:00:35]} 15. Bc2 {[%emt 0:00:25]} b5 {[%emt 0:00:25]} 16. Nd2 {[%emt 0:00:41]} Qd6 {[%emt 0:00:40]} 17. Bb1 {[%emt 0:01:42]} b4 {[%emt 0:00:43]} 18. Qc2 {[%emt 0:00:33]} g6 {[%emt 0:00:59]} 19. cxb4 {[%emt 0:00:57]} Qxb4 {[%emt 0:00:30]} 20. Qc3 {[%emt 0:00:35]} a5 {[%emt 0:01:02]} 21. O-O {[%emt 0:02:02]} Rfd8 {[%emt 0:01:00]} 22. Rd1 {[%emt 0:02:13]} Nd7 {[%emt 0:00:28]} 23. Ndf3 {[%emt 0:01:15]} f6 {[%emt 0:00:52]} 24. Nxd7 {[%emt 0:00:50]} Rxd7 {[%emt 0:00:25]} 25. Bc2 {[%emt 0:00:50]} Na6 {[%emt 0:01:04]} 26. Rab1 {[%emt 0:01:25]} Rc7 {[%emt 0:00:52]} 27. Qd2 {[%emt 0:00:43]} Rac8 {[%emt 0:02:17]} 28. Qc3 {[%emt 0:00:54]} Bc6 {[%emt 0:00:53]} 29. Ra1 {[%emt 0:01:35]} Rb7 {[%emt 0:00:53]} 30. Rdb1 {[%emt 0:00:56]} Rcb8 {[%emt 0:00:44]} 31. Ra2 {[%emt 0:00:48]} Qxc3 {[%emt 0:00:33]} 32. bxc3 {[%emt 0:00:27]} Rxb1+ {[%emt 0:00:22]} 33. Bxb1 {[%emt 0:00:25]} Rxb1+ {[%emt 0:00:23]} 0-1

[Event "Balkan Youth Online-ch 2020"]
[Site "Online"]
[Date "2020.10.31"]
[Round "2.86"]
[White "Kouta, Antonia"]
[Black "Anghel, Maria"]
[Result "1-0"]
[ECO "B15"]
[WhiteElo "1714"]
[BlackElo "1826"]
[Annotator "NA RC"]
[PlyCount "81"]
[EventDate "2020.10.31"]
[EventType "swiss"]
[SourceTitle "playchess.com"]
[Source "ChessBase"]
[SourceQuality "1"]
[TimeControl "5400+30"]

1. e4 {[%emt 1:05:20]} c6 {[%emt 1:05:27]} 2. d4 {[%emt 0:00:25]} d5 {[%emt 0:00:23]} 3. Nd2 {[%emt 0:00:22]} dxe4 {[%emt 0:00:29]} 4. Nxe4 {[%emt 0:00:22]} Nf6 {[%emt 0:00:23]} 5. Nxf6+ {[%emt 0:00:26]} exf6 {[%emt 0:00:22]} 6. c3 {[%emt 0:00:28]} Bd6 {[%emt 0:00:37]} 7. Nf3 {[%emt 0:01:22]} O-O {[%emt 0:01:07]} 8. Be2 {[%emt 0:00:32]} Bg4 {[%emt 0:00:35]} 9. O-O {[%emt 0:00:39]} Qc7 {[%emt 0:00:27]} 10. h3 {[%emt 0:00:28]} Bh5 {[%emt 0:01:11]} 11. Nh4 {[%emt 0:00:43]} Bg6 {[%emt 0:03:52]} 12. Bd3 {[%emt 0:01:58]} Bh2+ {[%emt 0:02:27]} 13. Kh1 {[%emt 0:00:26]} Bf4 {[%emt 0:00:47]} 14. Qf3 {[%emt 0:02:31]} Bxc1 {[%emt 0:00:52]} 15. Raxc1 {[%emt 0:00:33]} Bxd3 {[%emt 0:01:30]} 16. Qxd3 {[%emt 0:00:23]} Nd7 {[%emt 0:02:42]} 17. Rfe1 {[%emt 0:01:03]} Qf4 {[%emt 0:03:31]} 18. g3 {[%emt 0:02:44]} Qd6 {[%emt 0:02:47]} 19. Nf5 {[%emt 0:02:01]} Qd5+ {[%emt 0:02:07]} 20. Kg1 {[%emt 0:01:31]} Qxa2 {[%emt 0:03:43]} 21. Ra1 {[%emt 0:05:54]} Qb3 {[%emt 0:01:06]} 22. Re7 {[%emt 0:01:34]} Rad8 {[%emt 0:02:18]} 23. Nd6 {[%emt 0:05:59]} Qxb2 {[%emt 0:01:51]} 24. Rxa7 {[%emt 0:02:50]} Nb6 {[%emt 0:00:59]} 25. Nxb7 {[%emt 0:00:27]} Ra8 {[%emt 0:00:44]} 26. Nd6 {[%emt 0:01:03]} Rxa7 {[%emt 0:00:21]} 27. Rxa7 {[%emt 0:00:22]} Nd5 {[%emt 0:00:27]} 28. Nf5 {[%emt 0:00:41]} Nxc3 {[%emt 0:00:33]} 29. Ne7+ {[%emt 0:00:43]} Kh8 {[%emt 0:00:22]} 30. Nxc6 {[%emt 0:00:22]} Qc1+ {[%emt 0:00:34]} 31. Kg2 {[%emt 0:00:40]} Nd5 {[%emt 0:00:30]} 32. Na5 {[%emt 0:00:40]} g6 {[%emt 0:00:33]} 33. Qb3 {[%emt 0:00:44]} Qg5 {[%emt 0:00:33]} 34. Nc6 {[%emt 0:00:30]} Nf4+ {[%emt 0:00:34]} 35. Kh2 {[%emt 0:00:23]} Ne2 {[%emt 0:00:31]} 36. Rxf7 {[%emt 0:00:34]} Re8 {[%emt 0:00:29]} 37. Rxh7+ {[%emt 0:00:34]} Kxh7 {[%emt 0:00:25]} 38. Qf7+ {[%emt 0:00:22]} Kh6 {[%emt 0:00:24]} 39. Qxe8 {[%emt 0:00:22]} Qb5 {[%emt 0:00:40]} 40. Qh8+ {[%emt 0:00:41]} Kg5 {[%emt 0:00:22]} 41. Qh4+ {[%emt 0:00:27]} 1-0

[Event "Balkan Youth Online-ch 2020"]
[Site "Online"]
[Date "2020.10.31"]
[Round "2.87"]
[White "Ivanovic, Tara"]
[Black "Sural, Ceren"]
[Result "0-1"]
[ECO "B30"]
[WhiteElo "1283"]
[BlackElo "1686"]
[Annotator "NA RC"]
[PlyCount "66"]
[EventDate "2020.10.31"]
[EventType "swiss"]
[SourceTitle "playchess.com"]
[Source "ChessBase"]
[SourceQuality "1"]
[TimeControl "5400+30"]

1. e4 {[%emt 1:05:20]} c5 {[%emt 1:05:25]} 2. Nf3 {[%emt 0:00:25]} d6 {[%emt 0:00:24]} 3. c4 {[%emt 0:00:25]} Nc6 {[%emt 0:00:48]} 4. Nc3 {[%emt 0:00:27]} Bg4 {[%emt 0:00:47]} 5. g3 {[%emt 0:00:49]} e6 {[%emt 0:01:51]} 6. d3 {[%emt 0:00:31]} Nd4 {[%emt 0:01:40]} 7. Bg2 {[%emt 0:00:51]} Qf6 {[%emt 0:00:50]} 8. Bg5 {[%emt 0:00:46]} Nxf3+ {[%emt 0:00:47]} 9. Kf1 {[%emt 0:00:29]} Nxh2+ {[%emt 0:01:12]} 10. Rxh2 {[%emt 0:00:23]} Bxd1 {[%emt 0:00:31]} 11. Bxf6 {[%emt 0:00:22]} Nxf6 {[%emt 0:00:38]} 12. Rxd1 {[%emt 0:00:22]} Rb8 {[%emt 0:00:42]} 13. Bf3 {[%emt 0:00:42]} Nd7 {[%emt 0:00:38]} 14. Kg2 {[%emt 0:00:26]} Be7 {[%emt 0:00:36]} 15. Rhh1 {[%emt 0:00:22]} a6 {[%emt 0:00:34]} 16. a4 {[%emt 0:00:43]} Bd8 {[%emt 0:01:00]} 17. d4 {[%emt 0:01:13]} Bf6 {[%emt 0:01:25]} 18. d5 {[%emt 0:01:35]} Ke7 {[%emt 0:01:18]} 19. dxe6 {[%emt 0:00:29]} fxe6 {[%emt 0:00:22]} 20. Rhe1 {[%emt 0:00:27]} Bxc3 {[%emt 0:00:45]} 21. bxc3 {[%emt 0:00:23]} Nb6 {[%emt 0:00:25]} 22. Rd3 {[%emt 0:00:34]} Nxc4 {[%emt 0:00:36]} 23. Rb1 {[%emt 0:00:29]} Rhf8 {[%emt 0:01:07]} 24. Rdd1 {[%emt 0:01:29]} Ne5 {[%emt 0:02:44]} 25. Be2 {[%emt 0:00:32]} Nd7 {[%emt 0:01:49]} 26. Rd2 {[%emt 0:00:37]} Nf6 {[%emt 0:00:36]} 27. f3 {[%emt 0:00:29]} d5 {[%emt 0:00:53]} 28. exd5 {[%emt 0:00:50]} exd5 {[%emt 0:01:02]} 29. Rdb2 {[%emt 0:00:24]} Rfd8 {[%emt 0:02:36]} 30. Bxa6 {[%emt 0:00:56]} Ra8 {[%emt 0:01:50]} 31. Rxb7+ {[%emt 0:00:58]} Kf8 {[%emt 0:00:40]} 32. Bb5 {[%emt 0:00:59]} Ne8 {[%emt 0:01:42]} 33. Rc7 {[%emt 0:00:40]} Nxc7 {[%emt 0:00:25]} 0-1

[Event "Balkan Youth Online-ch 2020"]
[Site "Online"]
[Date "2020.10.31"]
[Round "2.91"]
[White "Shqau, Olta"]
[Black "Kalyva, Kyriaki"]
[Result "0-1"]
[ECO "D45"]
[WhiteElo "1373"]
[BlackElo "1823"]
[Annotator "NA RC"]
[PlyCount "56"]
[EventDate "2020.10.31"]
[EventType "swiss"]
[SourceTitle "playchess.com"]
[Source "ChessBase"]
[SourceQuality "1"]
[TimeControl "5400+30"]

1. d4 {[%emt 1:05:20]} d5 {[%emt 1:05:26]} 2. Nf3 {[%emt 0:00:30]} Nf6 {[%emt 0:00:25]} 3. e3 {[%emt 0:01:03]} e6 {[%emt 0:01:00]} 4. a3 {[%emt 0:00:53]} Nbd7 {[%emt 0:01:05]} 5. c4 {[%emt 0:00:31]} c6 {[%emt 0:00:24]} 6. Nc3 {[%emt 0:00:24]} Bd6 {[%emt 0:02:11]} 7. Be2 {[%emt 0:01:38]} O-O {[%emt 0:01:23]} 8. O-O {[%emt 0:00:25]} Re8 {[%emt 0:00:42]} 9. h3 {[%emt 0:00:59]} a6 {[%emt 0:02:06]} 10. b4 {[%emt 0:00:31]} b5 {[%emt 0:02:10]} 11. cxb5 {[%emt 0:01:55]} cxb5 {[%emt 0:00:25]} 12. Bb2 {[%emt 0:00:35]} Nb6 {[%emt 0:00:28]} 13. Qb3 {[%emt 0:01:42]} Qe7 {[%emt 0:05:01]} 14. Rfc1 {[%emt 0:02:11]} Bb7 {[%emt 0:01:31]} 15. Na2 {[%emt 0:02:15]} Ne4 {[%emt 0:00:59]} 16. Bd3 {[%emt 0:00:38]} Rad8 {[%emt 0:04:12]} 17. Bxe4 {[%emt 0:00:54]} dxe4 {[%emt 0:00:24]} 18. Nd2 {[%emt 0:01:42]} Bd5 {[%emt 0:00:27]} 19. Qd1 {[%emt 0:00:36]} Na4 {[%emt 0:00:53]} 20. Rcb1 {[%emt 0:01:00]} Rc8 {[%emt 0:00:28]} 21. Nb3 {[%emt 0:00:48]} Bb8 {[%emt 0:02:48]} 22. Nc5 {[%emt 0:02:45]} Nxc5 {[%emt 0:03:14]} 23. dxc5 {[%emt 0:00:34]} Red8 {[%emt 0:00:26]} 24. Qc2 {[%emt 0:01:17]} f5 {[%emt 0:00:49]} 25. Rd1 {[%emt 0:00:32]} Bc4 {[%emt 0:00:29]} 26. Qc3 {[%emt 0:01:08]} Bxa2 {[%emt 0:00:35]} 27. Rxd8+ {[%emt 0:00:32]} Rxd8 {[%emt 0:00:22]} 28. Rxa2 {[%emt 0:00:25]} Rd1+ {[%emt 0:00:23]} 0-1